bitfinex-derivatives/quotes_BTCF0:USTF0_20241208
["timestamp","ask_amount","ask_price","bid_price","bid_amount"]
[1733633807044,0.26628913,99901.0,99900.0,0.01120404]
[1733633807243,0.08674472,99901.0,99900.0,0.01120404]
[1733633810741,0.08674119,99901.0,99900.0,0.04620904]
[1733633811238,0.03809202,99901.0,99900.0,0.03807661]
[1733633811549,0.03809202,99901.0,99900.0,0.04620874]
[1733633811740,0.08673973,99901.0,99900.0,0.04620874]
[1733633812049,0.03809202,99901.0,99900.0,0.04620874]
[1733633813441,0.18771328,99901.0,99900.0,0.22632743]
[1733633813641,0.03809202,99901.0,99900.0,0.04620874]
[1733633814056,0.18771328,99901.0,99900.0,0.22625114]
[1733633816146,0.3608,99912.0,99900.0,0.22625114]
[1733633816147,0.11970381,99905.0,99900.0,0.42142558]
[1733633816449,0.11970381,99909.0,99907.0,0.035002]
[1733633816650,0.11970381,99909.0,99908.0,0.49933413]
[1733633817147,0.11970381,99911.0,99910.0,0.035001]
[1733633817449,0.11970381,99911.0,99910.0,0.0431319]
[1733633818252,0.11970381,99913.0,99910.0,0.0081309]
[1733633818454,0.11970381,99914.0,99911.0,0.0081309]
[1733633818648,0.11970381,99914.0,99913.0,0.17987107]
[1733633818841,0.11970381,99914.0,99913.0,0.18800197]
[1733633819047,0.11970381,99915.0,99913.0,0.0431309]
[1733633819242,0.11970381,99915.0,99914.0,0.0081309]
[1733633819463,0.04510698,99919.0,99918.0,0.034998]
[1733633819755,0.04510698,99919.0,99918.0,0.0431289]
[1733633820747,0.09374605,99919.0,99918.0,0.0451289]
[1733633821147,0.09374605,99919.0,99918.0,0.0471289]
[1733633821353,0.09374605,99919.0,99918.0,0.0101309]
[1733633821553,0.09374605,99919.0,99900.0,0.36087161]
[1733633821554,0.035004,99901.0,99900.0,7.161e-05]
[1733633821750,0.08364307,99901.0,99900.0,7.161e-05]
[1733633823455,0.22171197,99901.0,99900.0,7.161e-05]
[1733633823652,0.22171197,99901.0,99882.0,0.01]
[1733633823653,0.035006,99896.0,99882.0,0.01]
[1733633823853,0.22171397,99896.0,99880.0,0.035012]
[1733633824358,0.22171397,99896.0,99877.0,0.01]
[1733633824551,0.22171397,99896.0,99880.0,0.00011279]
[1733633825251,0.22271397,99896.0,99895.0,0.00550148]
[1733633825759,0.035011,99881.0,99880.0,0.00011279]
[1733633825955,0.44445007,99881.0,99880.0,0.00011279]
[1733633826457,0.4444718,99881.0,99880.0,0.00011279]
[1733633826862,0.4772718,99881.0,99880.0,0.00011279]
[1733633827259,0.4782718,99881.0,99880.0,0.00011279]
[1733633827660,0.65740647,99881.0,99880.0,0.00011279]
[1733633827859,0.4782718,99881.0,99880.0,0.00011279]
[1733633828069,0.4792718,99881.0,99880.0,0.00011279]
[1733633828566,0.430611,99881.0,99880.0,0.00011279]
[1733633829853,0.54983625,99881.0,99880.0,0.00011279]
[1733633830163,0.430611,99881.0,99880.0,0.00011279]
[1733633830367,0.428611,99881.0,99880.0,0.00011279]
[1733633830566,0.430611,99881.0,99880.0,0.00011279]
[1733633830965,0.55968671,99881.0,99880.0,0.00011279]
[1733633831163,0.44046146,99881.0,99880.0,0.00011279]
[1733633833169,0.002,99881.0,99880.0,0.00011279]
[1733633833355,0.002,99881.0,99880.0,0.00511833]
[1733633833555,0.002,99881.0,99880.0,0.03924653]
[1733633833760,0.002,99881.0,99880.0,0.10154653]
[1733633833961,0.002,99881.0,99880.0,0.09341279]
[1733633834159,0.002,99881.0,99880.0,0.09654107]
[1733633834364,0.002,99881.0,99880.0,0.10154633]
[1733633837372,0.002,99881.0,99880.0,0.13655833]
[1733633838567,0.037011,99881.0,99880.0,0.13655833]
[1733633838771,0.037011,99881.0,99880.0,0.00824633]
[1733633838970,0.12634049,99881.0,99880.0,0.00324107]
[1733633839273,0.037011,99881.0,99880.0,0.00324107]
[1733633839463,0.037011,99881.0,99880.0,0.00011279]
[1733633839667,0.067611,99881.0,99880.0,0.00011279]
[1733633840265,0.07769816,99881.0,99880.0,0.00011279]
[1733633841177,0.19692341,99881.0,99880.0,0.00011279]
[1733633841864,0.07769816,99881.0,99880.0,0.00011279]
[1733633842268,0.035018,99863.0,99855.0,0.40582]
[1733633842471,0.035018,99863.0,99862.0,0.00813533]
[1733633842779,0.035018,99863.0,99862.0,0.0081353]
[1733633843373,0.036018,99863.0,99862.0,0.00312897]
[1733633843884,0.037018,99863.0,99862.0,0.00312897]
[1733633844181,0.037018,99863.0,99860.0,0.00011215]
[1733633844182,0.035018,99861.0,99860.0,0.00011215]
[1733633844773,0.035018,99861.0,99860.0,0.00324119]
[1733633845377,0.036018,99861.0,99860.0,0.00324119]
[1733633845775,0.001,99861.0,99860.0,0.03826019]
[1733633846078,0.001,99861.0,99860.0,0.04326652]
[1733633847282,0.36087637,99870.0,99860.0,0.04326652]
[1733633847578,0.36087637,99870.0,99869.0,0.035016]
[1733633847579,7.637e-05,99870.0,99869.0,0.035016]
[1733633847873,7.637e-05,99870.0,99869.0,0.04315137]
[1733633848482,0.00107637,99870.0,99869.0,0.04315137]
[1733633848682,0.00207637,99870.0,99869.0,0.04315137]
[1733633849176,0.00107637,99870.0,99869.0,0.04315137]
[1733633849784,0.00107637,99870.0,99869.0,0.0578321]
[1733633850082,0.00107637,99870.0,99869.0,0.04315137]
[1733633850083,7.637e-05,99870.0,99869.0,0.04315137]
[1733633850273,7.637e-05,99870.0,99869.0,0.05777801]
[1733633851077,7.637e-05,99870.0,99869.0,0.05777615]
[1733633851576,7.637e-05,99870.0,99869.0,0.15790682]
[1733633852169,7.637e-05,99870.0,99869.0,0.45686845]
[1733633852369,7.637e-05,99870.0,99869.0,0.44240363]
[1733633854678,7.637e-05,99870.0,99869.0,0.43427012]
[1733633854879,7.637e-05,99870.0,99869.0,0.44240313]
[1733633855781,7.637e-05,99870.0,99869.0,0.74196363]
[1733633856172,7.637e-05,99870.0,99869.0,0.15790632]
[1733633858380,7.637e-05,99870.0,99869.0,0.05777565]
[1733633858683,7.637e-05,99870.0,99869.0,0.23749485]
[1733633858979,7.637e-05,99870.0,99869.0,0.40394901]
[1733633859678,7.637e-05,99870.0,99869.0,0.58366821]
[1733633860071,7.637e-05,99870.0,99869.0,0.40394901]
[1733633861275,7.637e-05,99870.0,99869.0,0.40394958]
[1733633861589,7.637e-05,99870.0,99869.0,0.4185668]
[1733633864779,7.637e-05,99870.0,99869.0,0.41856639]
[1733633866071,7.637e-05,99870.0,99869.0,1.00253858]
[1733633866273,7.637e-05,99870.0,99869.0,0.71812689]
[1733633866483,7.637e-05,99870.0,99869.0,1.00257842]
[1733633866995,7.637e-05,99870.0,99869.0,1.00251511]
[1733633867180,7.637e-05,99870.0,99869.0,0.71812689]
[1733633867979,7.637e-05,99870.0,99869.0,0.41043322]
[1733633868182,7.637e-05,99870.0,99869.0,0.41856642]
[1733633869582,7.637e-05,99870.0,99869.0,0.71812692]
[1733633869984,7.637e-05,99870.0,99869.0,0.41856642]
[1733633870182,7.637e-05,99870.0,99869.0,0.71812692]
[1733633870686,7.637e-05,99870.0,99869.0,0.41856642]
[1733633870993,7.637e-05,99870.0,99869.0,0.71812692]
[1733633871584,7.637e-05,99870.0,99869.0,0.70999372]
[1733633871785,7.637e-05,99870.0,99869.0,0.41856639]
[1733633875596,7.637e-05,99870.0,99869.0,0.41856654]
[1733633876905,0.068011,99882.0,99869.0,0.41856654]
[1733633876906,0.08792815,99896.0,99869.0,0.38355054]
[1733633877198,0.03501,99886.0,99885.0,0.39581]
[1733633877400,0.03501,99886.0,99885.0,0.40394332]
[1733633878497,0.03901,99886.0,99885.0,0.40394332]
[1733633878996,0.03901,99886.0,99885.0,0.36893332]
[1733633879399,0.04001,99886.0,99885.0,0.36893332]
[1733633879587,0.0886656,99886.0,99885.0,0.31903332]
[1733633879788,0.7596838,99886.0,99877.0,0.3608]
[1733633880096,0.035012,99878.0,99877.0,0.3608]
[1733633880296,0.035012,99878.0,99867.0,0.18002203]
[1733633880297,0.035016,99868.0,99867.0,0.18002203]
[1733633880601,0.035016,99868.0,99864.0,0.18002203]
[1733633880602,0.035017,99865.0,99864.0,0.18002203]
[1733633881189,0.0318,99866.0,99864.0,0.23991986]
[1733633881390,0.0318,99866.0,99862.0,0.035018]
[1733633881391,0.035017,99864.0,99862.0,0.035018]
[1733633881594,0.035018,99863.0,99862.0,0.035018]
[1733633882703,0.035018,99863.0,99862.0,0.21590324]
[1733633882902,0.035018,99863.0,99862.0,0.036018]
[1733633884002,0.036018,99863.0,99862.0,0.035018]
[1733633884196,0.037018,99863.0,99862.0,0.036018]
[1733633884399,0.0469185,99863.0,99862.0,0.036018]
[1733633885799,0.0469185,99863.0,99862.0,0.001]
[1733633889810,0.0469185,99863.0,99862.0,0.00600647]
[1733633890506,0.0469185,99863.0,99862.0,0.001]
[1733633903914,0.4077185,99863.0,99862.0,0.001]
[1733633904613,0.4077185,99863.0,99862.0,1e-06]
[1733633905599,0.035018,99861.0,99860.0,1.5e-07]
[1733633906006,0.035019,99858.0,99857.0,1.5e-07]
[1733633906908,0.18402016,99858.0,99857.0,1.5e-07]
[1733633907106,0.035019,99858.0,99857.0,1.5e-07]
[1733633907311,0.036019,99858.0,99857.0,1.5e-07]
[1733633907713,0.035024,99844.0,99843.0,0.0326]
[1733633907905,0.035024,99844.0,99843.0,0.04073735]
[1733633908105,0.035024,99844.0,99843.0,0.08394308]
[1733633909506,0.035024,99844.0,99843.0,0.08895082]
[1733633909507,0.036024,99844.0,99843.0,0.08895082]
[1733633909707,0.036024,99844.0,99843.0,0.08394308]
[1733633910419,0.037024,99844.0,99843.0,0.08394308]
[1733633910713,0.18612248,99844.0,99843.0,0.08394308]
[1733633910910,0.037024,99844.0,99843.0,0.08394308]
[1733633911102,0.18612146,99844.0,99843.0,0.08394308]
[1733633911303,0.037024,99844.0,99843.0,0.08394333]
[1733633911616,0.1860991,99844.0,99843.0,0.08394333]
[1733633911815,0.037024,99844.0,99843.0,0.08394333]
[1733633912115,0.18610335,99844.0,99843.0,0.08394333]
[1733633912305,0.037024,99844.0,99843.0,0.08394333]
[1733633913015,0.037024,99844.0,99843.0,0.03573]
[1733633913016,0.18610335,99844.0,99843.0,0.03573]
[1733633913213,0.18607281,99844.0,99843.0,0.03573]
[1733633913514,0.18607355,99844.0,99843.0,0.03573]
[1733633913717,0.037024,99844.0,99843.0,0.03573]
[1733633914014,0.18607404,99844.0,99843.0,0.0326]
[1733633914212,0.037024,99844.0,99843.0,0.0326]
[1733633914414,0.18607404,99844.0,99843.0,0.0326]
[1733633915013,0.037024,99844.0,99843.0,0.0326]
[1733633915213,0.18606004,99844.0,99843.0,0.0326]
[1733633916016,0.04710001,99844.0,99843.0,0.0326]
[1733633916419,0.04710001,99844.0,99843.0,0.03572986]
[1733633916813,0.04710001,99844.0,99843.0,0.0326]
[1733633917033,0.04710001,99844.0,99843.0,0.0357299]
[1733633917810,0.04710001,99844.0,99843.0,0.0326]
[1733633918512,0.55693605,99844.0,99843.0,0.0326]
[1733633918822,0.40790001,99844.0,99843.0,0.0326]
[1733633922009,0.40790001,99844.0,99843.0,0.03573001]
[1733633924018,0.35800001,99844.0,99843.0,0.03573001]
[1733633924925,0.035024,99844.0,99843.0,0.03573001]
[1733633925311,0.035024,99844.0,99843.0,0.0326]
[1733633925721,0.035024,99844.0,99843.0,0.03572994]
[1733633925915,0.04503883,99844.0,99843.0,0.03572994]
[1733633929225,0.19407487,99844.0,99843.0,0.03572994]
[1733633930220,0.04503883,99844.0,99843.0,0.03572994]
[1733633930424,0.09372038,99844.0,99843.0,0.03572994]
[1733633933027,0.04503883,99844.0,99843.0,0.03572994]
[1733633933229,0.09371847,99844.0,99843.0,0.03572994]
[1733633933826,0.04503883,99844.0,99843.0,0.03572994]
[1733633934025,0.21656753,99844.0,99843.0,0.03572994]
[1733633934920,0.09371847,99844.0,99843.0,0.03572994]
[1733633935428,0.09371847,99844.0,99843.0,0.04073789]
[1733633935624,0.09371847,99844.0,99843.0,0.03572994]
[1733633935928,0.09371847,99844.0,99843.0,0.03572999]
[1733633936138,0.04503883,99844.0,99843.0,0.03572999]
[1733633936324,0.2165685,99844.0,99843.0,0.04073798]
[1733633938028,0.21664808,99844.0,99843.0,0.04073798]
[1733633941338,0.21663272,99844.0,99843.0,0.04073798]
[1733633945035,0.21663272,99844.0,99843.0,0.03760799]
[1733633945545,0.21663272,99844.0,99843.0,0.04073798]
[1733633946846,0.21663272,99844.0,99843.0,0.00813798]
[1733633947344,0.21663272,99844.0,99843.0,0.00312999]
[1733633948049,0.21663272,99844.0,99843.0,0.00813818]
[1733633948850,0.09372126,99844.0,99843.0,0.00813818]
[1733633949150,0.09372126,99844.0,99843.0,0.00813817]
[1733633949344,0.09372126,99844.0,99843.0,0.00313007]
[1733633951150,0.09372261,99844.0,99843.0,0.00313007]
[1733633951549,0.09472261,99844.0,99843.0,0.00413007]
[1733633951753,0.09572261,99844.0,99843.0,0.00513007]
[1733633951949,0.21828657,99844.0,99843.0,0.00513007]
[1733633952150,0.21828657,99844.0,99843.0,0.01013841]
[1733633952343,0.21828657,99844.0,99843.0,0.00513007]
[1733633952543,0.21828657,99844.0,99843.0,0.01013834]
[1733633952844,0.21828657,99844.0,99843.0,0.00513007]
[1733633953246,0.21828657,99844.0,99843.0,0.01013844]
[1733633953547,0.21828657,99844.0,99843.0,0.00513007]
[1733633954356,0.21828657,99844.0,99843.0,0.01013844]
[1733633954853,0.21828657,99844.0,99843.0,0.01013861]
[1733633955148,0.21828657,99844.0,99843.0,0.002]
[1733633955448,0.21828657,99844.0,99843.0,0.01013861]
[1733633958155,0.21828657,99844.0,99843.0,0.00513023]
[1733633959758,0.21811225,99844.0,99843.0,0.00513023]
[1733633961457,0.21811225,99844.0,99843.0,0.00513021]
[1733633963856,0.36008129,99844.0,99843.0,0.00513021]
[1733633964267,0.36008129,99844.0,99829.0,0.0313]
[1733633964268,0.54388825,99844.0,99829.0,0.0313]
[1733633964563,0.035029,99830.0,99829.0,0.0313]
[1733633964749,0.08371346,99830.0,99829.0,0.0313]
[1733633964952,0.08371346,99830.0,99829.0,0.08452182]
[1733633965159,0.08371346,99830.0,99829.0,0.07951333]
[1733633965359,0.08381707,99830.0,99829.0,0.07951333]
[1733633965659,0.08381707,99830.0,99829.0,0.08452182]
[1733633965857,0.20640853,99830.0,99829.0,0.08552182]
[1733633967167,0.20740853,99830.0,99829.0,0.08552182]
[1733633967760,0.08581707,99830.0,99829.0,0.08552182]
[1733633968250,0.08581707,99830.0,99829.0,0.08552171]
[1733633970758,0.04960021,99830.0,99829.0,0.08552171]
[1733633970954,0.09828842,99830.0,99829.0,0.08552171]
[1733633971151,0.09828842,99830.0,99829.0,0.08051333]
[1733633971561,0.09828842,99830.0,99829.0,0.08552194]
[1733633973061,0.09828842,99830.0,99829.0,0.08051333]
[1733633974572,0.09828842,99830.0,99829.0,0.08552197]
[1733633974961,0.09828842,99830.0,99829.0,0.08552202]
[1733633976365,0.09828842,99830.0,99829.0,0.08865242]
[1733633979369,0.21977318,99830.0,99829.0,0.08865242]
[1733633979578,0.09828842,99830.0,99829.0,0.08865242]
[1733633979774,0.09828793,99830.0,99829.0,0.08865242]
[1733633981678,0.09828793,99830.0,99829.0,0.08552202]
[1733633981971,0.09828793,99830.0,99829.0,0.0886523]
[1733633982166,0.09828793,99830.0,99829.0,0.08865226]
[1733633984591,0.0982895,99830.0,99829.0,0.08865226]
[1733633985467,0.0982895,99830.0,99829.0,0.08051333]
[1733633985668,0.0982895,99830.0,99829.0,0.08364376]
[1733633985871,0.0982895,99830.0,99829.0,0.08865245]
[1733633986071,0.14936813,99832.0,99829.0,0.08865245]
[1733633986272,0.06950113,99831.0,99830.0,0.18512567]
[1733633986480,0.035029,99831.0,99830.0,0.00813912]
[1733633988172,0.035029,99831.0,99830.0,0.00913912]
[1733633988173,0.036029,99831.0,99830.0,0.00913912]
[1733633989783,0.037029,99831.0,99830.0,0.01113912]
[1733633990378,0.037029,99831.0,99830.0,0.0111378]
[1733633991878,0.037029,99831.0,99830.0,0.18301356]
[1733633992078,0.037029,99831.0,99830.0,0.01113787]
[1733633995276,0.037029,99831.0,99830.0,0.01113827]
[1733634000875,0.21626276,99831.0,99830.0,0.01113827]
[1733634001089,0.26495003,99831.0,99830.0,0.01113827]
[1733634001682,0.08571627,99831.0,99830.0,0.01113827]
[1733634002277,0.08571593,99831.0,99830.0,0.01113827]
[1733634003388,0.08571594,99831.0,99830.0,0.01113827]
[1733634003782,0.2649497,99831.0,99830.0,0.01113827]
[1733634004384,0.2649497,99831.0,99830.0,0.0111388]
[1733634004688,0.2649497,99831.0,99830.0,0.00613031]
[1733634005086,0.08571594,99831.0,99830.0,0.00613031]
[1733634005990,0.21612513,99831.0,99830.0,0.00613031]
[1733634006197,0.26481207,99831.0,99830.0,0.00613031]
[1733634006383,0.26481207,99831.0,99830.0,0.01113877]
[1733634006690,0.26481207,99831.0,99830.0,0.00613031]
[1733634006891,0.2648121,99831.0,99830.0,0.00613031]
[1733634007099,0.08571598,99831.0,99830.0,0.01113877]
[1733634007288,0.26481211,99831.0,99830.0,0.00613031]
[1733634008091,0.08571598,99831.0,99830.0,0.00613031]
[1733634008398,0.21612864,99831.0,99830.0,0.00613031]
[1733634008695,0.26481562,99831.0,99830.0,0.00613031]
[1733634008991,0.08571598,99831.0,99830.0,0.00613031]
[1733634009184,0.11811598,99831.0,99830.0,0.00613031]
[1733634009380,0.11711598,99831.0,99830.0,0.00513031]
[1733634009585,0.068429,99831.0,99830.0,0.00513031]
[1733634010086,0.068429,99831.0,99830.0,0.01013874]
[1733634010288,0.068429,99831.0,99830.0,0.00513031]
[1733634010882,0.067429,99831.0,99830.0,0.00513031]
[1733634011593,0.067429,99831.0,99830.0,0.0101388]
[1733634012294,0.11611631,99831.0,99830.0,0.0101388]
[1733634013991,0.11611631,99831.0,99824.0,0.3608]
[1733634013992,0.035031,99825.0,99819.0,0.18001356]
[1733634014186,0.035031,99825.0,99813.0,0.18001356]
[1733634014187,0.0001245,99820.0,99813.0,0.18001356]
[1733634014394,0.035035,99813.0,99812.0,0.18001356]
[1733634014695,0.035036,99811.0,99804.0,0.18001356]
[1733634014897,0.035036,99811.0,99808.0,0.04821333]
[1733634015989,0.08373535,99811.0,99808.0,0.04821333]
[1733634016189,0.08473535,99811.0,99810.0,0.00109863]
[1733634016410,0.26362438,99811.0,99810.0,0.00109863]
[1733634016595,0.08473535,99811.0,99810.0,0.00109863]
[1733634016891,0.26462438,99811.0,99810.0,0.00109863]
[1733634017096,0.08573535,99811.0,99810.0,0.00109863]
[1733634017596,0.08573535,99811.0,99810.0,9.863e-05]
[1733634020397,0.08573535,99811.0,99800.0,0.1]
[1733634020398,0.035039,99801.0,99800.0,0.1]
[1733634020601,0.035039,99801.0,99800.0,0.14821333]
[1733634021700,0.036039,99801.0,99800.0,0.14821333]
[1733634021906,0.037039,99801.0,99800.0,0.14821333]
[1733634022129,0.037039,99801.0,99800.0,0.1]
[1733634022605,0.0857435,99801.0,99800.0,0.1]
[1733634022806,0.18588661,99801.0,99800.0,0.1]
[1733634022998,0.08574278,99801.0,99800.0,0.1]
[1733634023204,0.035043,99791.0,99790.0,0.00012418]
[1733634023697,0.035043,99791.0,99790.0,0.04833751]
[1733634024410,0.036043,99791.0,99790.0,0.04833751]
[1733634025209,0.037043,99791.0,99790.0,0.04833751]
[1733634026905,0.037043,99791.0,99790.0,0.05146911]
[1733634027307,0.037043,99791.0,99790.0,0.04833751]
[1733634029418,0.035043,99791.0,99790.0,0.04833751]
[1733634029605,0.05286931,99791.0,99790.0,0.04833751]
[1733634031114,0.14214551,99791.0,99790.0,0.04833751]
[1733634031306,0.05286931,99791.0,99790.0,0.04833751]
[1733634031510,0.14214551,99791.0,99790.0,0.04833751]
[1733634032204,0.05286931,99791.0,99790.0,0.04833751]
[1733634032705,0.035043,99791.0,99790.0,0.05146907]
[1733634033005,0.035043,99791.0,99790.0,0.05647921]
[1733634033312,0.06313604,99800.0,99790.0,0.05647921]
[1733634033512,0.06313604,99800.0,99793.0,0.3608]
[1733634033713,0.07902644,99800.0,99794.0,0.00313156]
[1733634034006,0.07902644,99800.0,99793.0,0.3608]
[1733634034007,0.035042,99794.0,99793.0,0.3608]
[1733634034211,0.035042,99794.0,99793.0,0.36393117]
[1733634034618,0.035042,99794.0,99793.0,0.3608]
[1733634034811,0.035042,99794.0,99793.0,0.36393117]
[1733634035110,0.035042,99794.0,99793.0,0.36493117]
[1733634035616,0.035042,99794.0,99793.0,0.36393117]
[1733634035806,0.036042,99794.0,99793.0,0.36493117]
[1733634036003,0.036042,99794.0,99793.0,0.36593117]
[1733634036004,0.037042,99794.0,99793.0,0.36593117]
[1733634041502,0.037042,99794.0,99793.0,0.36593128]
[1733634042120,0.037042,99794.0,99793.0,0.37094133]
[1733634044119,0.1263182,99794.0,99793.0,0.37094133]
[1733634044626,0.037042,99794.0,99793.0,0.37094133]
[1733634044821,0.12653014,99794.0,99793.0,0.37094133]
[1733634045323,0.037042,99794.0,99793.0,0.41915466]
[1733634046121,0.12654463,99794.0,99793.0,0.41915466]
[1733634046422,0.12654463,99794.0,99793.0,0.05835466]
[1733634046423,0.037042,99794.0,99793.0,0.05835466]
[1733634048819,0.15639045,99794.0,99793.0,0.05835466]
[1733634050325,0.037042,99794.0,99793.0,0.05835466]
[1733634050524,0.037042,99794.0,99793.0,0.05835494]
[1733634051722,0.15642624,99794.0,99793.0,0.05835494]
[1733634052114,0.037042,99794.0,99793.0,0.05835494]
[1733634054220,0.08574612,99794.0,99793.0,0.05835494]
[1733634054525,0.08574607,99794.0,99793.0,0.05835494]
[1733634055221,0.08574607,99794.0,99793.0,0.05334472]
[1733634055423,0.08574607,99794.0,99793.0,0.05835494]
[1733634058328,0.08574607,99794.0,99793.0,0.06461772]
[1733634059322,0.08574607,99794.0,99793.0,0.05835497]
[1733634059527,0.08574607,99794.0,99793.0,0.06461777]
[1733634060221,0.08574607,99794.0,99793.0,0.05835497]
[1733634060814,0.08574607,99794.0,99793.0,0.06461779]
[1733634061028,0.08574607,99794.0,99793.0,0.06461786]
[1733634061228,0.037042,99794.0,99793.0,0.06461786]
[1733634061421,0.037042,99794.0,99793.0,0.24463142]
[1733634062326,0.037042,99794.0,99793.0,0.06461786]
[1733634063822,0.037042,99794.0,99793.0,0.06461765]
[1733634064023,0.037042,99794.0,99793.0,0.24489698]
[1733634065218,0.037042,99794.0,99793.0,0.24489696]
[1733634065722,0.037042,99794.0,99793.0,0.46045963]
[1733634065931,0.037042,99794.0,99793.0,0.75964703]
[1733634066119,0.037042,99794.0,99793.0,0.78443138]
[1733634066426,0.002,99794.0,99793.0,0.79889938]
[1733634067118,0.037042,99794.0,99793.0,0.79807222]
[1733634067422,0.037042,99794.0,99793.0,1.09831785]
[1733634067615,0.037042,99794.0,99793.0,0.47492763]
[1733634068428,0.037042,99794.0,99793.0,0.46866489]
[1733634068635,0.037042,99794.0,99793.0,0.79247471]
[1733634069125,0.037042,99794.0,99793.0,0.46866489]
[1733634070427,0.037042,99794.0,99793.0,0.46866365]
[1733634071025,0.037042,99794.0,99793.0,0.46871206]
[1733634072330,0.037042,99794.0,99793.0,0.64873487]
[1733634073232,0.037042,99794.0,99793.0,0.46871206]
[1733634074230,0.037042,99794.0,99793.0,0.46057174]
[1733634074530,0.037042,99794.0,99793.0,0.46871229]
[1733634075435,0.037042,99794.0,99793.0,0.6487351]
[1733634075625,0.037042,99794.0,99793.0,0.6136931]
[1733634076125,0.037042,99794.0,99793.0,0.43367029]
[1733634076716,0.037042,99794.0,99793.0,0.41915388]
[1733634077924,0.037042,99794.0,99793.0,0.4336863]
[1733634078125,0.037042,99794.0,99793.0,0.4198336]
[1733634079329,0.037042,99794.0,99793.0,0.41915388]
[1733634080527,0.037042,99794.0,99793.0,0.65912937]
[1733634080738,0.037042,99794.0,99793.0,0.41915388]
[1733634081927,0.002,99794.0,99793.0,0.45419588]
[1733634082631,0.002,99794.0,99793.0,0.4548756]
[1733634083226,0.0301,99808.0,99800.0,0.03504]
[1733634083227,0.03504,99801.0,99800.0,0.03504]
[1733634083422,0.03504,99801.0,99800.0,0.28941009]
[1733634083637,0.03504,99801.0,99800.0,0.05012209]
[1733634084123,0.03504,99801.0,99800.0,0.04944219]
[1733634084324,0.03504,99801.0,99800.0,0.03504]
[1733634084524,0.03504,99801.0,99800.0,0.05112086]
[1733634084828,0.03504,99801.0,99800.0,0.05212086]
[1733634085329,0.03504,99801.0,99800.0,0.05044119]
[1733634085638,0.03604,99801.0,99800.0,0.05212083]
[1733634086030,0.03704,99801.0,99800.0,0.05244119]
[1733634086839,0.03704,99801.0,99800.0,0.05344119]
[1733634087233,0.03704,99801.0,99800.0,0.0678594]
[1733634087430,0.03704,99801.0,99800.0,0.06785933]
[1733634088534,0.03704,99801.0,99800.0,0.06159797]
[1733634089435,0.03704,99801.0,99800.0,0.0678593]
[1733634090539,0.03704,99801.0,99800.0,0.06159797]
[1733634090742,0.03704,99801.0,99800.0,0.06159793]
[1733634091533,0.03704,99801.0,99800.0,0.24255085]
[1733634092326,0.03704,99801.0,99800.0,0.06159793]
[1733634092327,0.03604,99801.0,99800.0,0.06159793]
[1733634093344,0.001,99801.0,99800.0,0.06159793]
[1733634094139,0.001,99801.0,99800.0,0.06159794]
[1733634094438,0.001,99801.0,99800.0,0.06163312]
[1733634096541,0.0906289,99801.0,99800.0,0.28712148]
[1733634097339,0.0906289,99801.0,99800.0,0.04785992]
[1733634097643,0.0906289,99801.0,99800.0,0.04785991]
[1733634098545,0.0906289,99801.0,99800.0,0.04717973]
[1733634099240,0.001,99801.0,99800.0,0.34736941]
[1733634100343,0.001,99801.0,99800.0,0.38321976]
[1733634100943,0.001,99801.0,99800.0,0.38321974]
[1733634101549,0.001,99801.0,99800.0,0.38948107]
[1733634102040,0.15170035,99817.0,99802.0,0.3539]
[1733634102041,0.0322,99817.0,99802.0,0.3539]
[1733634102249,0.0322,99817.0,99816.0,0.395834]
[1733634102540,0.0322,99817.0,99816.0,0.41023504]
[1733634103441,0.0322,99817.0,99816.0,0.41091501]
[1733634103637,0.0322,99817.0,99816.0,0.41191501]
[1733634103945,0.0322,99817.0,99816.0,0.41123504]
[1733634104338,0.0332,99817.0,99816.0,0.41123504]
[1733634104847,0.0322,99817.0,99816.0,0.41223338]
[1733634106037,0.0322,99817.0,99816.0,0.41123338]
[1733634106238,0.0322,99817.0,99816.0,0.41223338]
[1733634106544,0.067234,99817.0,99816.0,0.41223338]
[1733634106847,0.067234,99817.0,99816.0,0.41291315]
[1733634107144,0.18673435,99817.0,99816.0,0.41291315]
[1733634107345,0.0322,99817.0,99815.0,0.00067985]
[1733634107540,0.067234,99817.0,99816.0,0.001]
[1733634108149,0.035036,99812.0,99811.0,0.035036]
[1733634108344,0.15445277,99812.0,99811.0,0.035036]
[1733634108547,0.035036,99812.0,99811.0,0.035036]
[1733634109341,0.0322,99817.0,99816.0,0.035034]
[1733634109342,0.067234,99817.0,99816.0,0.035034]
[1733634109648,0.067234,99817.0,99816.0,0.395834]
[1733634110548,0.067234,99817.0,99816.0,0.396834]
[1733634110942,0.067234,99817.0,99816.0,0.397834]
[1733634111341,0.067234,99817.0,99816.0,0.396834]
[1733634111649,0.067234,99817.0,99816.0,0.397834]
[1733634114249,0.067234,99817.0,99816.0,0.63790137]
[1733634114555,0.067234,99817.0,99816.0,0.63690137]
[1733634114741,0.067234,99817.0,99816.0,0.63790137]
[1733634117454,0.067234,99817.0,99816.0,0.6429099]
[1733634118458,0.15683197,99817.0,99816.0,0.6429099]
[1733634119461,0.067234,99817.0,99816.0,0.40597284]
[1733634119755,0.0322,99817.0,99816.0,0.40597284]
[1733634120356,0.0001245,99820.0,99819.0,0.035033]
[1733634120664,0.0001245,99820.0,99819.0,0.41813503]
[1733634120847,0.0001245,99820.0,99819.0,0.42432232]
[1733634121157,0.0001245,99820.0,99819.0,0.43246059]
[1733634121354,0.0001245,99820.0,99819.0,0.10571073]
[1733634121557,0.0001245,99820.0,99819.0,0.34668946]
[1733634121860,0.0001245,99820.0,99819.0,0.10671073]
[1733634121861,0.0011245,99820.0,99819.0,0.10671073]
[1733634122350,0.0011245,99820.0,99819.0,0.34663655]
[1733634123164,0.0011245,99820.0,99819.0,0.10671073]
[1733634123656,0.0011245,99820.0,99819.0,0.10170231]
[1733634123859,0.0011245,99820.0,99819.0,0.10671007]
[1733634124247,0.0011245,99820.0,99819.0,0.09238394]
[1733634124453,0.0011245,99820.0,99819.0,0.81398394]
[1733634125255,0.0011245,99820.0,99819.0,0.83317755]
[1733634128865,0.0011245,99820.0,99819.0,0.81398394]
[1733634129655,0.0011245,99820.0,99819.0,0.81466341]
[1733634130155,0.0011245,99820.0,99819.0,0.81398394]
[1733634130355,0.0011245,99820.0,99819.0,0.81398418]
[1733634134462,0.0011245,99820.0,99819.0,0.83382693]
[1733634134673,0.0011245,99820.0,99819.0,0.83382685]
[1733634137758,0.005,99831.0,99820.0,0.035033]
[1733634137963,0.005,99838.0,99837.0,0.035027]
[1733634138169,0.05061727,99843.0,99842.0,0.035025]
[1733634138364,0.05061727,99843.0,99842.0,0.04316277]
[1733634139772,0.0363,99843.0,99842.0,0.04316277]